[Event "*** Titled Tuesday Blitz"]
[Site "Chess.com"]
[Date "2020.04.28"]
[Round "2"]
[White "Kingsman132"]
[Black "Pawnpusherschessaccademy"]
[Result "0-1"]
[WhiteElo "2439"]
[BlackElo "2234"]
[TimeControl "180+1"]
[EndTime "10:17:44 PDT"]
[Termination "Pawnpusherschessaccademy won by resignation"]

1. d4 {[%clk 0:03:00.9]} 1... Nf6 {[%clk 0:02:34.1]} 2. c4 {[%clk 0:02:59.2]}
2... e6 {[%clk 0:02:32.4]} 3. Nc3 {[%clk 0:02:57.8]} 3... Bb4 {[%clk 0:02:32.5]}
4. Qc2 {[%clk 0:02:57.7]} 4... O-O {[%clk 0:02:32.3]} 5. a3 {[%clk 0:02:47.6]}
5... Bxc3+ {[%clk 0:02:31.8]} 6. Qxc3 {[%clk 0:02:44.5]} 6... b6 {[%clk
0:02:32.7]} 7. e4 {[%clk 0:02:28.2]} 7... Nxe4 {[%clk 0:02:30.8]} 8. Qf3 {[%clk
0:02:24.4]} 8... d5 {[%clk 0:02:25.6]} 9. Bd3 {[%clk 0:02:20.4]} 9... Bb7 {[%clk
0:02:20.7]} 10. Ne2 {[%clk 0:02:09.9]} 10... Nd7 {[%clk 0:02:18.6]} 11. O-O
{[%clk 0:01:57.4]} 11... h6 {[%clk 0:02:04.4]} 12. cxd5 {[%clk 0:01:57.3]} 12...
exd5 {[%clk 0:02:03.1]} 13. Nc3 {[%clk 0:01:55.6]} 13... Ndf6 {[%clk 0:02:00.2]}
14. Re1 {[%clk 0:01:49.1]} 14... c5 {[%clk 0:01:54.2]} 15. dxc5 {[%clk
0:01:42.3]} 15... Nxc5 {[%clk 0:01:49.6]} 16. Bc2 {[%clk 0:01:36.9]} 16... d4
{[%clk 0:01:37.3]} 17. Qg3 {[%clk 0:01:30.4]} 17... dxc3 {[%clk 0:01:34.6]} 18.
Bxh6 {[%clk 0:01:29.9]} 18... Nh5 {[%clk 0:00:54.9]} 19. Qg4 {[%clk 0:01:23.2]}
19... Qd5 {[%clk 0:00:47.2]} 20. Rad1 {[%clk 0:01:04.2]} 20... Qxg2+ {[%clk
0:00:46.4]} 21. Qxg2 {[%clk 0:01:03.2]} 21... Bxg2 {[%clk 0:00:46.6]} 22. Kxg2
{[%clk 0:00:57.1]} 22... gxh6 {[%clk 0:00:46.3]} 23. bxc3 {[%clk 0:00:57.4]}
23... Rfe8 {[%clk 0:00:44.8]} 24. Rxe8+ {[%clk 0:00:52.6]} 24... Rxe8 {[%clk
0:00:44.2]} 25. Kf3 {[%clk 0:00:51.2]} 25... Nf6 {[%clk 0:00:42.2]} 26. Rg1+
{[%clk 0:00:46.7]} 26... Kf8 {[%clk 0:00:42]} 27. Rd1 {[%clk 0:00:36.1]} 27...
Nfe4 {[%clk 0:00:40.8]} 28. c4 {[%clk 0:00:27.5]} 28... Re6 {[%clk 0:00:37.1]}
29. Rd4 {[%clk 0:00:18.8]} 29... Ng5+ {[%clk 0:00:33.8]} 30. Kf4 {[%clk
0:00:16.4]} 30... Re2 {[%clk 0:00:32]} 31. Bd1 {[%clk 0:00:06.3]} 31... Nce6+
{[%clk 0:00:29.4]} 32. Kf5 {[%clk 0:00:05.4]} 32... Nxd4+ {[%clk 0:00:28.4]} 0-1

[Event "*** Titled Tuesday Blitz"]
[Site "Chess.com"]
[Date "2020.04.28"]
[Round "2"]
[White "MiroVlasenko"]
[Black "TzoumpasAnastasis"]
[Result "0-1"]
[WhiteElo "2596"]
[BlackElo "2185"]
[TimeControl "180+1"]
[EndTime "10:17:46 PDT"]
[Termination "TzoumpasAnastasis won by checkmate"]

1. e4 {[%clk 0:03:00.9]} 1... c5 {[%clk 0:02:59.3]} 2. Nc3 {[%clk 0:03:01.1]}
2... a6 {[%clk 0:02:58.2]} 3. f4 {[%clk 0:03:00.7]} 3... b5 {[%clk 0:02:57.5]}
4. Nf3 {[%clk 0:03:01]} 4... e6 {[%clk 0:02:57.6]} 5. g3 {[%clk 0:03:00.6]} 5...
b4 {[%clk 0:02:57.6]} 6. Ne2 {[%clk 0:03:00.2]} 6... d5 {[%clk 0:02:57.6]} 7. e5
{[%clk 0:03:00]} 7... d4 {[%clk 0:02:54.3]} 8. d3 {[%clk 0:02:59]} 8... Bb7
{[%clk 0:02:54.2]} 9. Bg2 {[%clk 0:02:59.2]} 9... f5 {[%clk 0:02:51.3]} 10. exf6
{[%clk 0:02:56.3]} 10... Nxf6 {[%clk 0:02:49.8]} 11. O-O {[%clk 0:02:56.6]}
11... Bd6 {[%clk 0:02:49.3]} 12. c3 {[%clk 0:02:49.8]} 12... dxc3 {[%clk
0:02:47]} 13. bxc3 {[%clk 0:02:49.5]} 13... O-O {[%clk 0:02:43.7]} 14. cxb4
{[%clk 0:02:40.6]} 14... cxb4 {[%clk 0:02:42.5]} 15. a3 {[%clk 0:02:41.5]} 15...
bxa3 {[%clk 0:02:38.1]} 16. Bxa3 {[%clk 0:02:41.2]} 16... Qb6+ {[%clk
0:02:33.4]} 17. Kh1 {[%clk 0:02:35.5]} 17... Bxa3 {[%clk 0:02:32.9]} 18. Rxa3
{[%clk 0:02:35.2]} 18... Ng4 {[%clk 0:02:32.9]} 19. Rb3 {[%clk 0:02:27]} 19...
Qc7 {[%clk 0:01:53.7]} 20. Qd2 {[%clk 0:02:25.6]} 20... Bd5 {[%clk 0:01:52.6]}
21. Rc3 {[%clk 0:02:08]} 21... Qb7 {[%clk 0:01:50.3]} 22. h3 {[%clk 0:02:01.7]}
22... Nf6 {[%clk 0:01:49.6]} 23. g4 {[%clk 0:01:57.8]} 23... Nc6 {[%clk
0:01:48.8]} 24. f5 {[%clk 0:01:53.8]} 24... exf5 {[%clk 0:01:46.4]} 25. Nf4
{[%clk 0:01:53.5]} 25... fxg4 {[%clk 0:01:42.9]} 26. hxg4 {[%clk 0:01:31]} 26...
Ne7 {[%clk 0:01:32.4]} 27. g5 {[%clk 0:01:24.3]} 27... Ng4 {[%clk 0:01:22.9]}
28. Nxd5 {[%clk 0:01:12.7]} 28... Qxd5 {[%clk 0:01:19.8]} 29. Nh2 {[%clk
0:01:03.6]} 29... Rxf1+ {[%clk 0:00:58.3]} 30. Nxf1 {[%clk 0:01:04.5]} 30... Qf5
{[%clk 0:00:58]} 31. Ng3 {[%clk 0:00:53.4]} 31... Qe5 {[%clk 0:00:41.2]} 32.
Bxa8 {[%clk 0:00:48.5]} 32... Qxg3 {[%clk 0:00:40.5]} 33. Bg2 {[%clk 0:00:46.7]}
33... Nf2+ {[%clk 0:00:26.9]} 34. Kg1 {[%clk 0:00:46.5]} 34... Nh3+ {[%clk
0:00:27]} 35. Kf1 {[%clk 0:00:46.9]} 35... Nf5 {[%clk 0:00:25.9]} 36. Qa2+
{[%clk 0:00:36.3]} 36... Kf8 {[%clk 0:00:26.1]} 37. Rc8+ {[%clk 0:00:23.9]}
37... Ke7 {[%clk 0:00:26.1]} 38. Qa3+ {[%clk 0:00:22.6]} 38... Kd7 {[%clk
0:00:25.3]} 39. Rc2 {[%clk 0:00:18.4]} 39... Ne3+ {[%clk 0:00:24.2]} 40. Ke2
{[%clk 0:00:18.8]} 40... Qf2# {[%clk 0:00:21.9]} 0-1

[Event "*** Titled Tuesday Blitz"]
[Site "Chess.com"]
[Date "2020.04.28"]
[Round "2"]
[White "Chess_Boxer123"]
[Black "Training_Day"]
[Result "1-0"]
[WhiteElo "2563"]
[BlackElo "2297"]
[TimeControl "180+1"]
[EndTime "10:17:48 PDT"]
[Termination "Chess_Boxer123 won on time"]

1. e4 {[%clk 0:03:00.9]} 1... e5 {[%clk 0:02:59.5]} 2. Nf3 {[%clk 0:03:00.8]}
2... Nc6 {[%clk 0:02:58.7]} 3. Bb5 {[%clk 0:03:00.3]} 3... a6 {[%clk 0:02:58.2]}
4. Ba4 {[%clk 0:02:58.5]} 4... Nf6 {[%clk 0:02:58.5]} 5. O-O {[%clk 0:02:58.1]}
5... Be7 {[%clk 0:02:56.9]} 6. Re1 {[%clk 0:02:58]} 6... b5 {[%clk 0:02:57]} 7.
Bb3 {[%clk 0:02:57.6]} 7... d6 {[%clk 0:02:57.5]} 8. c3 {[%clk 0:02:56.6]} 8...
O-O {[%clk 0:02:56.6]} 9. h3 {[%clk 0:02:56.9]} 9... Nb8 {[%clk 0:02:56.6]} 10.
d4 {[%clk 0:02:56.6]} 10... Nbd7 {[%clk 0:02:56.8]} 11. a4 {[%clk 0:02:55]}
11... Bb7 {[%clk 0:02:55.4]} 12. Nbd2 {[%clk 0:02:55.2]} 12... c5 {[%clk
0:02:53.8]} 13. d5 {[%clk 0:02:54.6]} 13... c4 {[%clk 0:02:53.5]} 14. Bc2 {[%clk
0:02:54.9]} 14... Qc7 {[%clk 0:02:53.2]} 15. Nf1 {[%clk 0:02:54.7]} 15... Rfb8
{[%clk 0:02:50.2]} 16. Ng3 {[%clk 0:02:54]} 16... Bc8 {[%clk 0:02:49.5]} 17. a5
{[%clk 0:02:34.1]} 17... g6 {[%clk 0:02:47.3]} 18. Bg5 {[%clk 0:02:19.6]} 18...
Nc5 {[%clk 0:02:37]} 19. Nh4 {[%clk 0:02:12.4]} 19... Ne8 {[%clk 0:02:28.9]} 20.
Qd2 {[%clk 0:02:08.2]} 20... Qd8 {[%clk 0:02:27.8]} 21. Bxe7 {[%clk 0:02:06.1]}
21... Qxe7 {[%clk 0:02:27.4]} 22. Nf3 {[%clk 0:01:59]} 22... Bd7 {[%clk
0:02:14.3]} 23. Nh2 {[%clk 0:01:55.8]} 23... h5 {[%clk 0:02:05.7]} 24. Rf1
{[%clk 0:01:48.4]} 24... Qh4 {[%clk 0:01:38.1]} 25. Rae1 {[%clk 0:01:25.1]}
25... Nf6 {[%clk 0:01:22.7]} 26. Re3 {[%clk 0:01:23.3]} 26... Qf4 {[%clk
0:00:58.8]} 27. Ne2 {[%clk 0:01:22]} 27... Qh6 {[%clk 0:00:33.6]} 28. f4 {[%clk
0:01:18.9]} 28... exf4 {[%clk 0:00:33.6]} 29. Nxf4 {[%clk 0:01:18.9]} 29... Re8
{[%clk 0:00:25.6]} 30. Qd4 {[%clk 0:01:18.6]} 30... Qg7 {[%clk 0:00:21]} 31.
Nxg6 {[%clk 0:01:16.5]} 31... fxg6 {[%clk 0:00:16.2]} 32. Rxf6 {[%clk
0:01:15.9]} 32... Nb7 {[%clk 0:00:03.3]} 33. Nf3 {[%clk 0:01:12.3]} 33... Rf8
{[%clk 0:00:02.5]} 34. Rxf8+ {[%clk 0:01:11.7]} 34... Rxf8 {[%clk 0:00:03.4]}
35. Qxg7+ {[%clk 0:01:11.6]} 35... Kxg7 {[%clk 0:00:04.3]} 36. e5 {[%clk
0:01:12.2]} 36... dxe5 {[%clk 0:00:03.8]} 37. Nxe5 {[%clk 0:01:11.7]} 37... Bf5
{[%clk 0:00:03.7]} 38. Bxf5 {[%clk 0:01:06.8]} 38... gxf5 {[%clk 0:00:04.6]} 39.
Nc6 {[%clk 0:01:07.4]} 39... Nd6 {[%clk 0:00:01.9]} 40. Re6 {[%clk 0:01:06.5]}
40... Rf6 {[%clk 0:00:02]} 41. Re7+ {[%clk 0:01:05.7]} 41... Rf7 {[%clk
0:00:02.3]} 42. Re5 {[%clk 0:01:03.3]} 42... h4 {[%clk 0:00:01.6]} 43. Kf2
{[%clk 0:01:02.5]} 43... Kf6 {[%clk 0:00:01.2]} 44. Re6+ {[%clk 0:01:02.3]} 1-0

[Event "*** Titled Tuesday Blitz"]
[Site "Chess.com"]
[Date "2020.04.28"]
[Round "2"]
[White "Aikiigm"]
[Black "atwalcb"]
[Result "1-0"]
[WhiteElo "2515"]
[BlackElo "2273"]
[TimeControl "180+1"]
[EndTime "10:17:48 PDT"]
[Termination "Aikiigm won by resignation"]

1. h4 {[%clk 0:02:40.9]} 1... d5 {[%clk 0:02:47.7]} 2. h5 {[%clk 0:02:41.8]}
2... e5 {[%clk 0:02:42.5]} 3. c4 {[%clk 0:02:42.7]} 3... Nf6 {[%clk 0:02:34.8]}
4. h6 {[%clk 0:02:42.2]} 4... gxh6 {[%clk 0:02:34.3]} 5. cxd5 {[%clk 0:02:42.1]}
5... Nxd5 {[%clk 0:02:32.7]} 6. d3 {[%clk 0:02:42.4]} 6... Nc6 {[%clk
0:02:24.8]} 7. Bxh6 {[%clk 0:02:41.1]} 7... Bxh6 {[%clk 0:02:23.2]} 8. Rxh6
{[%clk 0:02:40.4]} 8... Qg5 {[%clk 0:02:23.1]} 9. Rh1 {[%clk 0:02:35]} 9... Be6
{[%clk 0:02:16.6]} 10. Nf3 {[%clk 0:02:35]} 10... Qg7 {[%clk 0:02:12.4]} 11. Nc3
{[%clk 0:02:32.5]} 11... Nxc3 {[%clk 0:02:08.8]} 12. bxc3 {[%clk 0:02:33.4]}
12... O-O-O {[%clk 0:02:08.5]} 13. Qc1 {[%clk 0:02:30.5]} 13... f5 {[%clk
0:01:52.1]} 14. g3 {[%clk 0:02:18.5]} 14... e4 {[%clk 0:01:30.6]} 15. Ng5 {[%clk
0:02:14.9]} 15... Bd5 {[%clk 0:01:28.6]} 16. d4 {[%clk 0:02:15]} 16... e3 {[%clk
0:01:25.6]} 17. Nf3 {[%clk 0:02:11.6]} 17... Bxf3 {[%clk 0:01:12.9]} 18. exf3
{[%clk 0:02:12.5]} 18... Rde8 {[%clk 0:01:07.9]} 19. Bb5 {[%clk 0:02:08.2]}
19... exf2+ {[%clk 0:00:55]} 20. Kxf2 {[%clk 0:02:09.1]} 20... Rhg8 {[%clk
0:00:54.7]} 21. Rh3 {[%clk 0:02:08.5]} 21... Re7 {[%clk 0:00:33.4]} 22. Bxc6
{[%clk 0:02:00.2]} 22... bxc6 {[%clk 0:00:33.9]} 23. Qh6 {[%clk 0:02:00]} 23...
Qxh6 {[%clk 0:00:24.8]} 24. Rxh6 {[%clk 0:01:59.7]} 24... Rge8 {[%clk
0:00:25.4]} 25. Kg2 {[%clk 0:01:58]} 25... Re2+ {[%clk 0:00:24.5]} 26. Kh3
{[%clk 0:01:58.2]} 26... Rf2 {[%clk 0:00:24.6]} 27. f4 {[%clk 0:01:53.3]} 27...
Re3 {[%clk 0:00:24.3]} 28. Rxh7 {[%clk 0:01:52.5]} 28... Ree2 {[%clk 0:00:24.7]}
29. Rh1 {[%clk 0:01:50.3]} 29... Re3 {[%clk 0:00:25]} 30. Rh6 {[%clk 0:01:48.3]}
30... Rxc3 {[%clk 0:00:23.9]} 31. Kh4 {[%clk 0:01:47]} 31... Rff3 {[%clk
0:00:21.8]} 32. Rh3 {[%clk 0:01:46.2]} 32... Rfd3 {[%clk 0:00:22]} 33. Rf6
{[%clk 0:01:46.1]} 33... Rxd4 {[%clk 0:00:22.3]} 34. Rxf5 {[%clk 0:01:46.4]}
34... Rd5 {[%clk 0:00:22.2]} 35. Rf8+ {[%clk 0:01:44.2]} 35... Kb7 {[%clk
0:00:22.4]} 36. f5 {[%clk 0:01:42.5]} 36... Rf3 {[%clk 0:00:21.4]} 37. g4 {[%clk
0:01:42.6]} 37... Rf4 {[%clk 0:00:21.8]} 38. Kg5 {[%clk 0:01:41.6]} 38... Rf2
{[%clk 0:00:21.2]} 39. Rg3 {[%clk 0:01:41.5]} 39... Rxa2 {[%clk 0:00:20.1]} 40.
Rb3+ {[%clk 0:01:40.1]} 40... Ka6 {[%clk 0:00:20]} 41. Rf7 {[%clk 0:01:38.3]}
41... Rd4 {[%clk 0:00:19]} 42. Rxc7 {[%clk 0:01:38]} 42... Raa4 {[%clk
0:00:19.3]} 43. Rxc6+ {[%clk 0:01:36.9]} 43... Ka5 {[%clk 0:00:19.8]} 44. Rc5+
{[%clk 0:01:36.6]} 44... Ka6 {[%clk 0:00:20]} 45. Rc6+ {[%clk 0:01:36.9]} 45...
Ka5 {[%clk 0:00:19.7]} 46. Kf6 {[%clk 0:01:37.3]} 46... Rxg4 {[%clk 0:00:19.3]}
47. Rb7 {[%clk 0:01:37.6]} 47... Rab4 {[%clk 0:00:19.1]} 48. Rxa7+ {[%clk
0:01:37.4]} 48... Kb5 {[%clk 0:00:19.8]} 49. Re6 {[%clk 0:01:34.7]} 49... Rbd4
{[%clk 0:00:19.8]} 50. Rae7 {[%clk 0:01:33]} 50... Kc5 {[%clk 0:00:19.2]} 51.
Re5+ {[%clk 0:01:32.6]} 51... Kd6 {[%clk 0:00:19.4]} 52. R5e6+ {[%clk 0:01:33]}
52... Kd5 {[%clk 0:00:19.5]} 53. Kf7 {[%clk 0:01:32.8]} 53... Rdf4 {[%clk
0:00:19.7]} 54. f6 {[%clk 0:01:33.1]} 54... Rg2 {[%clk 0:00:20.2]} 55. Re5+
{[%clk 0:01:32.9]} 55... Kd6 {[%clk 0:00:20.8]} 56. R5e6+ {[%clk 0:01:33]} 56...
Kd5 {[%clk 0:00:21.2]} 57. Re2 {[%clk 0:01:32.8]} 57... Rgf2 {[%clk 0:00:20.6]}
58. Rxf2 {[%clk 0:01:32.7]} 58... Rxf2 {[%clk 0:00:21.5]} 59. Kg7 {[%clk
0:01:32.5]} 59... Rg2+ {[%clk 0:00:21.7]} 60. Kf8 {[%clk 0:01:32.5]} 60... Kd6
{[%clk 0:00:21.7]} 61. f7 {[%clk 0:01:32.7]} 61... Ra2 {[%clk 0:00:20.5]} 62.
Re3 {[%clk 0:01:31.2]} 62... Kd7 {[%clk 0:00:19.7]} 63. Re4 {[%clk 0:01:28.7]}
63... Rg2 {[%clk 0:00:19.6]} 64. Rd4+ {[%clk 0:01:27.8]} 64... Kc7 {[%clk
0:00:19]} 65. Ke7 {[%clk 0:01:26.9]} 65... Re2+ {[%clk 0:00:18.8]} 66. Kf6
{[%clk 0:01:26.8]} 66... Rf2+ {[%clk 0:00:19.1]} 67. Ke6 {[%clk 0:01:26.7]}
67... Re2+ {[%clk 0:00:18.7]} 68. Kf5 {[%clk 0:01:26.7]} 1-0

[Event "*** Titled Tuesday Blitz"]
[Site "Chess.com"]
[Date "2020.04.28"]
[Round "2"]
[White "tomozupan"]
[Black "Embrujada"]
[Result "0-1"]
[WhiteElo "2212"]
[BlackElo "2450"]
[TimeControl "180+1"]
[EndTime "10:17:48 PDT"]
[Termination "Embrujada won by resignation"]

1. d4 {[%clk 0:03:00.9]} 1... d6 {[%clk 0:02:53.6]} 2. Nf3 {[%clk 0:02:59.5]}
2... Nf6 {[%clk 0:02:54]} 3. c4 {[%clk 0:02:57.3]} 3... g6 {[%clk 0:02:53.4]} 4.
Nc3 {[%clk 0:02:56]} 4... Bf5 {[%clk 0:02:53.4]} 5. Bf4 {[%clk 0:02:51.7]} 5...
Bg7 {[%clk 0:02:52.7]} 6. e3 {[%clk 0:02:51.7]} 6... O-O {[%clk 0:02:53.2]} 7.
h3 {[%clk 0:02:48.4]} 7... c5 {[%clk 0:02:51.9]} 8. Be2 {[%clk 0:02:47.9]} 8...
Ne4 {[%clk 0:02:49.8]} 9. O-O {[%clk 0:02:38.7]} 9... Nxc3 {[%clk 0:02:45.8]}
10. bxc3 {[%clk 0:02:38.6]} 10... Nc6 {[%clk 0:02:46]} 11. Re1 {[%clk
0:02:30.8]} 11... e5 {[%clk 0:02:39.8]} 12. Bh2 {[%clk 0:02:29.5]} 12... exd4
{[%clk 0:02:37]} 13. cxd4 {[%clk 0:02:28.9]} 13... Be4 {[%clk 0:02:21.7]} 14.
Nd2 {[%clk 0:02:04.5]} 14... Bf5 {[%clk 0:02:13.6]} 15. Nf3 {[%clk 0:01:55.3]}
15... Re8 {[%clk 0:02:00.1]} 16. Rc1 {[%clk 0:01:54.4]} 16... Rc8 {[%clk
0:01:59.3]} 17. Bd3 {[%clk 0:01:48.1]} 17... Bxd3 {[%clk 0:01:41.6]} 18. Qxd3
{[%clk 0:01:47.4]} 18... cxd4 {[%clk 0:01:37.2]} 19. exd4 {[%clk 0:01:47.2]}
19... Rxe1+ {[%clk 0:01:33.8]} 20. Rxe1 {[%clk 0:01:46.3]} 20... d5 {[%clk
0:01:34.4]} 21. c5 {[%clk 0:01:40.5]} 21... b6 {[%clk 0:01:33.5]} 22. cxb6
{[%clk 0:01:36.3]} 22... Qxb6 {[%clk 0:01:33.2]} 23. Be5 {[%clk 0:01:20.9]}
23... Bxe5 {[%clk 0:01:09]} 24. Nxe5 {[%clk 0:01:16.8]} 24... Nb4 {[%clk
0:01:09.5]} 25. Qf3 {[%clk 0:01:11.1]} 25... Qe6 {[%clk 0:00:44]} 26. Nd3 {[%clk
0:00:55.4]} 26... Qd6 {[%clk 0:00:40.9]} 27. Ne5 {[%clk 0:00:51.7]} 27... Rc7
{[%clk 0:00:27.1]} 28. Qa3 {[%clk 0:00:47.3]} 28... Qb6 {[%clk 0:00:22.9]} 29.
Nf3 {[%clk 0:00:17.6]} 29... Kg7 {[%clk 0:00:22.6]} 30. Re5 {[%clk 0:00:16.5]}
30... a5 {[%clk 0:00:18.9]} 31. Re8 {[%clk 0:00:14.9]} 31... Rc2 {[%clk
0:00:16.9]} 32. Qe3 {[%clk 0:00:14.1]} 32... Qc7 {[%clk 0:00:16.6]} 33. Ng5
{[%clk 0:00:13.2]} 33... Rc1+ {[%clk 0:00:16.3]} 34. Qxc1 {[%clk 0:00:10]} 34...
Qxc1+ {[%clk 0:00:16.4]} 35. Kh2 {[%clk 0:00:10.4]} 35... Qxg5 {[%clk
0:00:16.4]} 0-1

[Event "*** Titled Tuesday Blitz"]
[Site "Chess.com"]
[Date "2020.04.28"]
[Round "2"]
[White "benko_008"]
[Black "Grandelicious"]
[Result "0-1"]
[WhiteElo "2507"]
[BlackElo "2767"]
[TimeControl "180+1"]
[EndTime "10:17:49 PDT"]
[Termination "Grandelicious won on time"]

1. Nf3 {[%clk 0:03:00.9]} 1... c5 {[%clk 0:02:57.3]} 2. c4 {[%clk 0:02:58.8]}
2... Nf6 {[%clk 0:02:55.9]} 3. Nc3 {[%clk 0:02:57.7]} 3... e6 {[%clk 0:02:55.9]}
4. g3 {[%clk 0:02:56.6]} 4... b6 {[%clk 0:02:56]} 5. Bg2 {[%clk 0:02:56.6]} 5...
Bb7 {[%clk 0:02:56.6]} 6. O-O {[%clk 0:02:56.5]} 6... Be7 {[%clk 0:02:57.1]} 7.
b3 {[%clk 0:02:56.7]} 7... O-O {[%clk 0:02:56.1]} 8. Bb2 {[%clk 0:02:56.8]} 8...
a6 {[%clk 0:02:55.2]} 9. e3 {[%clk 0:02:51.4]} 9... d6 {[%clk 0:02:54.9]} 10. d4
{[%clk 0:02:50.5]} 10... Ne4 {[%clk 0:02:54.1]} 11. Rc1 {[%clk 0:02:48.7]} 11...
Nd7 {[%clk 0:02:53.5]} 12. Qe2 {[%clk 0:02:41]} 12... Nxc3 {[%clk 0:02:42]} 13.
Bxc3 {[%clk 0:02:40]} 13... b5 {[%clk 0:02:40.6]} 14. Rfd1 {[%clk 0:02:22]}
14... bxc4 {[%clk 0:02:38.3]} 15. Qxc4 {[%clk 0:02:10]} 15... Rc8 {[%clk
0:02:31.1]} 16. Qe2 {[%clk 0:02:05.3]} 16... Qb6 {[%clk 0:02:14.5]} 17. Qe1
{[%clk 0:01:53.4]} 17... Qa7 {[%clk 0:02:12.2]} 18. dxc5 {[%clk 0:01:46.7]}
18... Nxc5 {[%clk 0:02:10]} 19. Bd4 {[%clk 0:01:39]} 19... Qa8 {[%clk
0:02:00.1]} 20. Bxc5 {[%clk 0:01:32.8]} 20... Bxf3 {[%clk 0:01:53.6]} 21. Bxf3
{[%clk 0:01:28.1]} 21... Qxf3 {[%clk 0:01:54.5]} 22. Bd4 {[%clk 0:01:21.6]}
22... h5 {[%clk 0:01:48.3]} 23. Qf1 {[%clk 0:00:45.7]} 23... h4 {[%clk 0:01:48]}
24. Qxa6 {[%clk 0:00:41.2]} 24... Rc2 {[%clk 0:01:25.1]} 25. Qf1 {[%clk
0:00:35.8]} 25... Rxa2 {[%clk 0:01:24.6]} 26. Qg2 {[%clk 0:00:35.2]} 26... Qe2
{[%clk 0:01:02.5]} 27. Re1 {[%clk 0:00:29]} 27... Qb5 {[%clk 0:00:55.3]} 28.
gxh4 {[%clk 0:00:24.8]} 28... e5 {[%clk 0:00:52.5]} 29. Bc3 {[%clk 0:00:21.2]}
29... Bxh4 {[%clk 0:00:52.6]} 30. Rf1 {[%clk 0:00:16.7]} 30... Qxb3 {[%clk
0:00:52.7]} 31. Qc6 {[%clk 0:00:14.1]} 31... Rc2 {[%clk 0:00:47.5]} 32. Qe4
{[%clk 0:00:11.5]} 32... Bxf2+ {[%clk 0:00:45.6]} 33. Kh1 {[%clk 0:00:09]} 33...
Rxc1 {[%clk 0:00:38.2]} 34. Rxc1 {[%clk 0:00:09.9]} 34... Rc8 {[%clk 0:00:33.3]}
35. Rf1 {[%clk 0:00:02.7]} 35... Bxe3 {[%clk 0:00:32.4]} 36. Qxe3 {[%clk
0:00:02.2]} 36... Qxc3 {[%clk 0:00:29.4]} 0-1

[Event "*** Titled Tuesday Blitz"]
[Site "Chess.com"]
[Date "2020.04.28"]
[Round "2"]
[White "Pedrada88"]
[Black "Jospem"]
[Result "0-1"]
[WhiteElo "2334"]
[BlackElo "2835"]
[TimeControl "180+1"]
[EndTime "10:17:51 PDT"]
[Termination "Jospem won by resignation"]

1. Nf3 {[%clk 0:03:00.9]} 1... c5 {[%clk 0:02:58.7]} 2. g3 {[%clk 0:03:00.8]}
2... Nc6 {[%clk 0:02:55.4]} 3. Bg2 {[%clk 0:03:00.9]} 3... g6 {[%clk 0:02:55.8]}
4. c3 {[%clk 0:03:00.8]} 4... e5 {[%clk 0:02:55.5]} 5. d4 {[%clk 0:02:58.2]}
5... cxd4 {[%clk 0:02:56.4]} 6. cxd4 {[%clk 0:02:58.1]} 6... e4 {[%clk
0:02:57.3]} 7. Ng5 {[%clk 0:02:57]} 7... d5 {[%clk 0:02:57.5]} 8. Nc3 {[%clk
0:02:56.1]} 8... Bg7 {[%clk 0:02:57.2]} 9. h4 {[%clk 0:02:44.4]} 9... Nge7
{[%clk 0:02:39.8]} 10. Bf4 {[%clk 0:02:34.7]} 10... h6 {[%clk 0:02:35.5]} 11.
Nh3 {[%clk 0:02:32.5]} 11... O-O {[%clk 0:02:34.8]} 12. e3 {[%clk 0:02:31.5]}
12... a6 {[%clk 0:02:23.9]} 13. O-O {[%clk 0:02:29.8]} 13... f6 {[%clk
0:02:22.2]} 14. Qb3 {[%clk 0:02:08.8]} 14... Kh8 {[%clk 0:02:08.1]} 15. Qa3
{[%clk 0:02:04]} 15... Rf7 {[%clk 0:01:59.3]} 16. Rac1 {[%clk 0:01:59.9]} 16...
Bg4 {[%clk 0:01:42.3]} 17. Bd6 {[%clk 0:01:54.4]} 17... g5 {[%clk 0:01:25.7]}
18. hxg5 {[%clk 0:01:37.4]} 18... fxg5 {[%clk 0:01:26.6]} 19. Bxe7 {[%clk
0:01:13.8]} 19... Nxe7 {[%clk 0:01:10.7]} 20. Qb3 {[%clk 0:01:10]} 20... Qd7
{[%clk 0:01:09.4]} 21. Na4 {[%clk 0:01:10]} 21... Raf8 {[%clk 0:01:01.2]} 22.
Nc5 {[%clk 0:00:45]} 22... Qf5 {[%clk 0:00:57.9]} 23. Kh2 {[%clk 0:00:45.1]}
23... Ng6 {[%clk 0:00:30.9]} 24. Nxb7 {[%clk 0:00:38.5]} 24... Rf6 {[%clk
0:00:31.2]} 25. Rc7 {[%clk 0:00:26.6]} 25... Bf3 {[%clk 0:00:31.4]} 26. Nc5
{[%clk 0:00:22.1]} 26... g4 {[%clk 0:00:28.3]} 27. Nd7 {[%clk 0:00:14.8]} 27...
gxh3 {[%clk 0:00:26.6]} 28. Bxh3 {[%clk 0:00:14.2]} 28... Bg4 {[%clk 0:00:20.1]}
29. Bxg4 {[%clk 0:00:09.5]} 29... Qxg4 {[%clk 0:00:21]} 30. Nxf6 {[%clk
0:00:09.7]} 30... Rxf6 {[%clk 0:00:19.5]} 31. Qxd5 {[%clk 0:00:09.7]} 31... Rf5
{[%clk 0:00:19.9]} 32. Rc8+ {[%clk 0:00:08.8]} 32... Nf8 {[%clk 0:00:20.4]} 33.
Qd6 {[%clk 0:00:08.2]} 33... Rh5+ {[%clk 0:00:20.2]} 34. Kg1 {[%clk 0:00:08.6]}
34... Qf3 {[%clk 0:00:20.7]} 35. Rxf8+ {[%clk 0:00:06.9]} 35... Bxf8 {[%clk
0:00:20.9]} 36. Qf6+ {[%clk 0:00:05.7]} 36... Qxf6 {[%clk 0:00:20.6]} 0-1